[Event "Live Chess"]
[Site "Chess.com"]
[Date "2023.05.20"]
[Round "-"]
[White "Alan_Richardson"]
[Black "siddu198"]
[Result "0-1"]
[WhiteElo "1646"]
[BlackElo "1619"]
[TimeControl "300"]
[EndTime "9:32:41 PDT"]
[Termination "siddu198 won on time"]

1. d4 {[%clk 0:04:58.5]} 1... d5 {[%clk 0:04:58.9]} 2. Nf3 {[%clk 0:04:56]} 2...
Bf5 {[%clk 0:04:57.5]} 3. Bf4 {[%clk 0:04:53.3]} 3... Nc6 {[%clk 0:04:56.9]} 4.
e3 {[%clk 0:04:45.5]} 4... a6 {[%clk 0:04:55.3]} 5. Bd3 {[%clk 0:04:29.1]} 5...
Bxd3 {[%clk 0:04:46.4]} 6. cxd3 {[%clk 0:04:26.9]} 6... Nf6 {[%clk 0:04:46]} 7.
Nc3 {[%clk 0:04:24.3]} 7... e6 {[%clk 0:04:45.5]} 8. O-O {[%clk 0:04:22.8]} 8...
Bd6 {[%clk 0:04:44.4]} 9. Bxd6 {[%clk 0:04:04.2]} 9... cxd6 {[%clk 0:04:41]} 10.
e4 {[%clk 0:04:02.3]} 10... dxe4 {[%clk 0:04:38.1]} 11. dxe4 {[%clk 0:04:00.5]}
11... e5 {[%clk 0:04:25.7]} 12. Rc1 {[%clk 0:03:46.2]} 12... exd4 {[%clk
0:04:22.3]} 13. Nxd4 {[%clk 0:03:42.8]} 13... Nxd4 {[%clk 0:04:20.7]} 14. Qxd4
{[%clk 0:03:41.4]} 14... O-O {[%clk 0:04:20.3]} 15. Rfd1 {[%clk 0:03:34.1]}
15... Re8 {[%clk 0:03:53.4]} 16. f3 {[%clk 0:03:31.6]} 16... Re6 {[%clk
0:03:38.4]} 17. Rc2 {[%clk 0:03:24.7]} 17... Rc8 {[%clk 0:03:31.2]} 18. Rcd2
{[%clk 0:03:22.9]} 18... Qa5 {[%clk 0:03:06.1]} 19. Qa4 {[%clk 0:02:46.5]} 19...
Qc5+ {[%clk 0:02:39.7]} 20. Qd4 {[%clk 0:02:41.9]} 20... Qa5 {[%clk 0:02:35.6]}
21. a3 {[%clk 0:02:35.3]} 21... Rd8 {[%clk 0:02:10.4]} 22. Qa7 {[%clk
0:02:22.3]} 22... Qc7 {[%clk 0:02:02.5]} 23. Nd5 {[%clk 0:02:12.7]} 23... Nxd5
{[%clk 0:02:00.8]} 24. Rxd5 {[%clk 0:02:11.5]} 24... f6 {[%clk 0:01:50.9]} 25.
Qd4 {[%clk 0:01:59.9]} 25... Kf7 {[%clk 0:01:30.4]} 26. f4 {[%clk 0:01:53.8]}
26... Ke7 {[%clk 0:01:07.2]} 27. g3 {[%clk 0:01:33.3]} 27... Qc2 {[%clk
0:00:56.2]} 28. Qb4 {[%clk 0:01:14.2]} 28... Qxe4 {[%clk 0:00:25.6]} 29. Qxb7+
{[%clk 0:01:10]} 29... Rd7 {[%clk 0:00:24.7]} 30. Qxa6 {[%clk 0:01:01.9]} 30...
Qe3+ {[%clk 0:00:22.7]} 31. Kg2 {[%clk 0:00:55.4]} 31... Qe2+ {[%clk 0:00:21.2]}
32. Qxe2 {[%clk 0:00:52.6]} 32... Rxe2+ {[%clk 0:00:20.9]} 33. Kf3 {[%clk
0:00:51.7]} 33... Rxb2 {[%clk 0:00:19.8]} 34. Re1+ {[%clk 0:00:44.1]} 34... Kf7
{[%clk 0:00:18.6]} 35. Ra1 {[%clk 0:00:37.4]} 35... Rxh2 {[%clk 0:00:16.1]} 36.
a4 {[%clk 0:00:35.8]} 36... Rb2 {[%clk 0:00:15.4]} 37. a5 {[%clk 0:00:31.9]}
37... Rbb7 {[%clk 0:00:14.5]} 38. a6 {[%clk 0:00:30.5]} 38... Ra7 {[%clk
0:00:14.2]} 39. Ke4 {[%clk 0:00:26.4]} 39... g6 {[%clk 0:00:12.7]} 40. Kd4
{[%clk 0:00:24.3]} 40... Ke6 {[%clk 0:00:11.7]} 41. Rda5 {[%clk 0:00:18.9]}
41... Rdc7 {[%clk 0:00:09.5]} 42. Re1+ {[%clk 0:00:15.9]} 42... Kd7 {[%clk
0:00:08.8]} 43. Rb1 {[%clk 0:00:12.9]} 43... Rc6 {[%clk 0:00:06.9]} 44. Rb7+
{[%clk 0:00:09.2]} 44... Rxb7 {[%clk 0:00:06.2]} 45. axb7 {[%clk 0:00:06.9]}
45... Kc7 {[%clk 0:00:05.4]} 46. Rb5 {[%clk 0:00:03.5]} 46... Rb6 {[%clk
0:00:03.8]} 47. Rxb6 {[%clk 0:00:02.1]} 47... Kb8 {[%clk 0:00:03.5]} 0-1

[Event "Live Chess"]
[Site "Chess.com"]
[Date "2023.05.20"]
[Round "-"]
[White "Jio85"]
[Black "Kony20"]
[Result "1-0"]
[WhiteElo "2026"]
[BlackElo "1332"]
[TimeControl "300"]
[EndTime "9:32:41 PDT"]
[Termination "Jio85 won by checkmate"]

1. e4 {[%clk 0:04:57.5]} 1... e5 {[%clk 0:04:58.5]} 2. Nf3 {[%clk 0:04:56.5]}
2... Nc6 {[%clk 0:04:56.2]} 3. Bc4 {[%clk 0:04:56]} 3... Be7 {[%clk 0:04:54.5]}
4. d4 {[%clk 0:04:54.5]} 4... exd4 {[%clk 0:04:53.3]} 5. O-O {[%clk 0:04:52.7]}
5... d6 {[%clk 0:04:49.6]} 6. Nxd4 {[%clk 0:04:50.8]} 6... Nf6 {[%clk
0:04:45.8]} 7. Nc3 {[%clk 0:04:48.6]} 7... Ne5 {[%clk 0:04:39.2]} 8. Bb3 {[%clk
0:04:46.4]} 8... O-O {[%clk 0:04:37]} 9. f4 {[%clk 0:04:44.7]} 9... Ng6 {[%clk
0:04:29.6]} 10. g3 {[%clk 0:04:37.5]} 10... Bg4 {[%clk 0:04:24.4]} 11. Nf3
{[%clk 0:04:32.4]} 11... Re8 {[%clk 0:04:13.3]} 12. h3 {[%clk 0:04:23.8]} 12...
Bxh3 {[%clk 0:04:09.1]} 13. Ng5 {[%clk 0:04:16.6]} 13... Be6 {[%clk 0:04:00.1]}
14. Nxe6 {[%clk 0:04:04.1]} 14... fxe6 {[%clk 0:04:00]} 15. Bxe6+ {[%clk
0:04:03.5]} 15... Kh8 {[%clk 0:03:58.8]} 16. Rf2 {[%clk 0:03:52.4]} 16... Ng4
{[%clk 0:03:56.7]} 17. Bxg4 {[%clk 0:03:51.1]} 17... Bf6 {[%clk 0:03:49.8]} 18.
Rh2 {[%clk 0:03:45.9]} 18... c5 {[%clk 0:03:44.5]} 19. Bf5 {[%clk 0:03:43.4]}
19... Bd4+ {[%clk 0:03:42.5]} 20. Kh1 {[%clk 0:03:40.8]} 20... Qf6 {[%clk
0:03:37.7]} 21. Qh5 {[%clk 0:03:35.2]} 21... h6 {[%clk 0:03:18.9]} 22. Nd5
{[%clk 0:03:26]} 22... Nxf4 {[%clk 0:03:06.7]} 23. Bxf4 {[%clk 0:03:21]} 23...
Qxf5 {[%clk 0:03:04.4]} 24. exf5 {[%clk 0:03:16.5]} 24... Re4 {[%clk 0:02:59.7]}
25. Bxh6 {[%clk 0:03:13.7]} 25... Bf6 {[%clk 0:02:54.9]} 26. Bxg7+ {[%clk
0:03:10.8]} 26... Kxg7 {[%clk 0:02:54]} 27. Qh7+ {[%clk 0:03:10.2]} 27... Kf8
{[%clk 0:02:53.4]} 28. Nxf6 {[%clk 0:03:05.5]} 28... Re7 {[%clk 0:02:47.7]} 29.
Qg8# {[%clk 0:03:00.1]} 1-0

[Event "Live Chess"]
[Site "Chess.com"]
[Date "2023.05.20"]
[Round "-"]
[White "ConorMaclaud"]
[Black "1600x"]
[Result "0-1"]
[WhiteElo "2109"]
[BlackElo "1317"]
[TimeControl "300"]
[EndTime "9:32:48 PDT"]
[Termination "1600x won by checkmate"]

1. Nf3 {[%clk 0:04:58.5]} 1... e5 {[%clk 0:04:56.9]} 2. Nxe5 {[%clk 0:04:57.1]}
2... Nc6 {[%clk 0:04:56.8]} 3. Nxc6 {[%clk 0:04:55.9]} 3... dxc6 {[%clk
0:04:56.7]} 4. e4 {[%clk 0:04:55.4]} 4... Bc5 {[%clk 0:04:55.4]} 5. Bc4 {[%clk
0:04:54]} 5... Qd4 {[%clk 0:04:53.3]} 6. Qe2 {[%clk 0:04:53]} 6... b5 {[%clk
0:04:50.5]} 7. Bb3 {[%clk 0:04:51.2]} 7... Ne7 {[%clk 0:04:48.8]} 8. O-O {[%clk
0:04:49.6]} 8... Bd6 {[%clk 0:04:21.3]} 9. d3 {[%clk 0:04:45.3]} 9... Qe5 {[%clk
0:04:13.8]} 10. f4 {[%clk 0:04:44.2]} 10... Qf6 {[%clk 0:04:12.5]} 11. e5 {[%clk
0:04:42.2]} 11... Bc5+ {[%clk 0:04:07.1]} 12. Kh1 {[%clk 0:04:36.8]} 12... Qh4
{[%clk 0:04:03.1]} 13. c3 {[%clk 0:04:11.8]} 13... Nf5 {[%clk 0:03:42]} 14. d4
{[%clk 0:04:08.6]} 14... Ng3+ {[%clk 0:02:48.2]} 15. Kg1 {[%clk 0:04:05.6]}
15... Nxe2+ {[%clk 0:02:46.8]} 16. Kh1 {[%clk 0:04:04.3]} 16... Bb6 {[%clk
0:02:45.3]} 17. Nd2 {[%clk 0:03:59.8]} 17... Ng3+ {[%clk 0:02:43.1]} 18. Kg1
{[%clk 0:03:58.6]} 18... Nxf1 {[%clk 0:02:41.9]} 19. Nf3 {[%clk 0:03:57.6]}
19... Qg4 {[%clk 0:02:40.7]} 20. Kxf1 {[%clk 0:03:56]} 20... Bb7 {[%clk
0:02:38.2]} 21. Bd1 {[%clk 0:03:54.3]} 21... c5 {[%clk 0:02:37.8]} 22. Be3
{[%clk 0:03:52.2]} 22... cxd4 {[%clk 0:02:35.7]} 23. Nxd4 {[%clk 0:03:49.3]}
23... Bxd4 {[%clk 0:02:34.5]} 24. Bxg4 {[%clk 0:03:47.3]} 24... Bxe3 {[%clk
0:02:31.3]} 25. Re1 {[%clk 0:03:41.4]} 25... Bd2 {[%clk 0:02:29.8]} 26. Re2
{[%clk 0:03:34.3]} 26... Rd8 {[%clk 0:02:26.5]} 27. g3 {[%clk 0:03:32]} 27... h5
{[%clk 0:02:25.1]} 28. Bh3 {[%clk 0:03:30.8]} 28... Bf3 {[%clk 0:02:23.5]} 29.
Rf2 {[%clk 0:03:26]} 29... f6 {[%clk 0:02:20.6]} 30. Rxf3 {[%clk 0:03:22.5]}
30... fxe5 {[%clk 0:02:19.4]} 31. fxe5 {[%clk 0:03:21.7]} 31... Rf8 {[%clk
0:02:17.6]} 32. Bf5 {[%clk 0:03:20.8]} 32... Rd5 {[%clk 0:02:16]} 33. Bg6+
{[%clk 0:02:48.6]} 33... Ke7 {[%clk 0:02:13.2]} 34. Rxf8 {[%clk 0:02:47.3]}
34... Kxf8 {[%clk 0:02:12.3]} 35. Ke2 {[%clk 0:02:47.2]} 35... Bc1 {[%clk
0:02:10.6]} 36. b3 {[%clk 0:02:45.2]} 36... Ba3 {[%clk 0:02:06.7]} 37. Bd3
{[%clk 0:02:36.2]} 37... a6 {[%clk 0:02:00.5]} 38. Kd2 {[%clk 0:02:36.1]} 38...
c6 {[%clk 0:01:58.7]} 39. b4 {[%clk 0:02:33.5]} 39... Kf7 {[%clk 0:01:55.7]} 40.
Kc2 {[%clk 0:02:29.6]} 40... Ke6 {[%clk 0:01:54.5]} 41. c4 {[%clk 0:02:26.1]}
41... Rd8 {[%clk 0:01:52.6]} 42. Be4 {[%clk 0:02:20]} 42... c5 {[%clk
0:01:49.3]} 43. Bd5+ {[%clk 0:02:15.8]} 43... Kxe5 {[%clk 0:01:47.7]} 44. Kb3
{[%clk 0:02:15]} 44... cxb4 {[%clk 0:01:46.5]} 45. Bb7 {[%clk 0:02:09.8]} 45...
Rd3+ {[%clk 0:01:43.8]} 46. Kc2 {[%clk 0:02:08.8]} 46... bxc4 {[%clk 0:01:41.8]}
47. Bxa6 {[%clk 0:02:07.6]} 47... b3+ {[%clk 0:01:36.8]} 48. axb3 {[%clk
0:02:05.6]} 48... Rxb3 {[%clk 0:01:35.3]} 49. Bxc4 {[%clk 0:02:05.1]} 49... Rb2+
{[%clk 0:01:33.9]} 50. Kc3 {[%clk 0:02:04]} 50... Rxh2 {[%clk 0:01:31.7]} 51.
Kb3 {[%clk 0:02:03]} 51... Bc5 {[%clk 0:01:30.4]} 52. Bf7 {[%clk 0:01:58.3]}
52... Bd4 {[%clk 0:01:29.2]} 53. Kc4 {[%clk 0:01:54.4]} 53... Bf2 {[%clk
0:01:27.5]} 54. Bg6 {[%clk 0:01:50.3]} 54... Kf6 {[%clk 0:01:25.5]} 55. Be4
{[%clk 0:01:47.5]} 55... Bxg3 {[%clk 0:01:24]} 56. Kd3 {[%clk 0:01:47.4]} 56...
g5 {[%clk 0:01:21.3]} 57. Ke3 {[%clk 0:01:46.5]} 57... g4 {[%clk 0:01:20.3]} 58.
Bd3 {[%clk 0:01:42.6]} 58... Bf2+ {[%clk 0:01:18.9]} 59. Kf4 {[%clk 0:01:40.9]}
59... g3 {[%clk 0:01:17.7]} 60. Be4 {[%clk 0:01:38.6]} 60... g2 {[%clk
0:01:14.5]} 61. Bxg2 {[%clk 0:01:38.2]} 61... Bd4 {[%clk 0:01:12.1]} 62. Kf3
{[%clk 0:01:38.1]} 62... h4 {[%clk 0:01:09.7]} 63. Kg4 {[%clk 0:01:29.6]} 63...
Rxg2+ {[%clk 0:01:07.5]} 64. Kxh4 {[%clk 0:01:28.9]} 64... Rh2+ {[%clk
0:01:07.4]} 65. Kg3 {[%clk 0:01:27.9]} 65... Re2 {[%clk 0:01:05.2]} 66. Kf3
{[%clk 0:01:27.2]} 66... Re3+ {[%clk 0:01:04.1]} 67. Kf4 {[%clk 0:01:27.1]}
67... Bb6 {[%clk 0:01:02.3]} 68. Kg4 {[%clk 0:01:26.1]} 68... Bc7 {[%clk
0:01:00.8]} 69. Kh4 {[%clk 0:01:24]} 69... Kf5 {[%clk 0:00:59.7]} 70. Kh5 {[%clk
0:01:21.9]} 70... Rh3# {[%clk 0:00:56.8]} 0-1

[Event "Live Chess"]
[Site "Chess.com"]
[Date "2023.05.20"]
[Round "-"]
[White "therealab0ne"]
[Black "MartinWalker4"]
[Result "0-1"]
[WhiteElo "677"]
[BlackElo "2087"]
[TimeControl "300"]
[EndTime "9:32:49 PDT"]
[Termination "MartinWalker4 won by resignation"]

1. e4 {[%clk 0:04:59.7]} 1... Nf6 {[%clk 0:04:57]} 2. Nc3 {[%clk 0:04:51.6]}
2... d5 {[%clk 0:04:54.8]} 3. Bb5+ {[%clk 0:04:42.2]} 3... c6 {[%clk 0:04:52.4]}
4. Ba4 {[%clk 0:04:39.1]} 4... dxe4 {[%clk 0:04:50.2]} 5. d3 {[%clk 0:04:24.9]}
5... exd3 {[%clk 0:04:47.8]} 6. cxd3 {[%clk 0:04:24.3]} 6... Bf5 {[%clk
0:04:46.5]} 7. Qf3 {[%clk 0:03:44.4]} 7... Qxd3 {[%clk 0:04:43.1]} 8. Qxd3
{[%clk 0:03:35.2]} 8... Bxd3 {[%clk 0:04:41.2]} 9. Nf3 {[%clk 0:03:24.8]} 9...
Nbd7 {[%clk 0:04:38.6]} 10. Nd4 {[%clk 0:03:09.1]} 10... Nc5 {[%clk 0:04:28.5]}
11. Bc2 {[%clk 0:03:07]} 11... Bxc2 {[%clk 0:04:26.2]} 12. Nxc2 {[%clk
0:03:06.2]} 12... O-O-O {[%clk 0:04:25.1]} 13. O-O {[%clk 0:02:59.2]} 13... e6
{[%clk 0:04:22.6]} 14. Bg5 {[%clk 0:02:31.5]} 14... Be7 {[%clk 0:04:19.2]} 15.
Nb4 {[%clk 0:01:57.3]} 15... Nd3 {[%clk 0:04:01.4]} 16. Nxd3 {[%clk 0:01:53]}
16... Rxd3 {[%clk 0:04:00]} 17. Rfe1 {[%clk 0:01:52.5]} 17... Bb4 {[%clk
0:03:51.4]} 18. Re3 {[%clk 0:01:31.1]} 18... Rhd8 {[%clk 0:03:46.3]} 19. Rd1
{[%clk 0:01:20.6]} 19... Rxd1+ {[%clk 0:03:43.7]} 20. Nxd1 {[%clk 0:01:19.5]}
20... Rxd1+ {[%clk 0:03:41.8]} 0-1

[Event "Live Chess"]
[Site "Chess.com"]
[Date "2023.05.20"]
[Round "-"]
[White "Ra2orLeaf"]
[Black "Ian-Morley"]
[Result "0-1"]
[WhiteElo "1148"]
[BlackElo "1085"]
[TimeControl "300"]
[EndTime "9:32:53 PDT"]
[Termination "Ian-Morley won by resignation"]

1. d4 {[%clk 0:04:57.5]} 1... e5 {[%clk 0:04:57.6]} 2. dxe5 {[%clk 0:04:56.1]}
2... Nc6 {[%clk 0:04:56.9]} 3. Nf3 {[%clk 0:04:54.9]} 3... Qe7 {[%clk
0:04:55.5]} 4. e6 {[%clk 0:04:54.4]} 4... dxe6 {[%clk 0:04:53.5]} 5. Bf4 {[%clk
0:04:52.3]} 5... Qb4+ {[%clk 0:04:52.2]} 6. Nc3 {[%clk 0:04:37.4]} 6... Qxb2
{[%clk 0:04:50.3]} 7. Ne4 {[%clk 0:04:25.5]} 7... Bb4+ {[%clk 0:04:45.9]} 8. c3
{[%clk 0:04:20.9]} 8... Bxc3+ {[%clk 0:04:42.1]} 9. Nxc3 {[%clk 0:04:19.9]} 9...
Qxc3+ {[%clk 0:04:41.3]} 10. Bd2 {[%clk 0:04:19.8]} 10... Qf6 {[%clk 0:04:24.6]}
11. e3 {[%clk 0:04:16.5]} 11... Nge7 {[%clk 0:04:22.1]} 12. Bb5 {[%clk 0:04:14]}
12... Bd7 {[%clk 0:04:19.8]} 13. h4 {[%clk 0:04:11.6]} 13... O-O {[%clk
0:04:18]} 14. h5 {[%clk 0:04:09.3]} 14... a6 {[%clk 0:04:09.9]} 15. Bd3 {[%clk
0:04:07.8]} 15... Ne5 {[%clk 0:04:06.7]} 16. Nxe5 {[%clk 0:03:52.1]} 16... Qxe5
{[%clk 0:04:05.4]} 17. h6 {[%clk 0:03:51.8]} 17... g6 {[%clk 0:04:02.9]} 18. Qb3
{[%clk 0:03:48.9]} 18... b5 {[%clk 0:04:01.3]} 19. Bc3 {[%clk 0:03:48.2]} 19...
Qd5 {[%clk 0:03:50.9]} 20. Qc2 {[%clk 0:03:18.9]} 20... c5 {[%clk 0:03:36.2]}
21. Be4 {[%clk 0:03:11.1]} 21... Qg5 {[%clk 0:03:19.1]} 22. Bxa8 {[%clk
0:03:04.4]} 22... Rxa8 {[%clk 0:03:17.3]} 23. Qe4 {[%clk 0:02:47.8]} 23... Bc6
{[%clk 0:03:12.2]} 24. Qd3 {[%clk 0:01:52.4]} 24... Nd5 {[%clk 0:02:56.4]} 25.
Rd1 {[%clk 0:01:24.5]} 25... Nxc3 {[%clk 0:02:47.4]} 26. Qd8+ {[%clk 0:01:22.9]}
26... Rxd8 {[%clk 0:02:46.1]} 27. Rxd8+ {[%clk 0:01:22.8]} 0-1

[Event "Live Chess"]
[Site "Chess.com"]
[Date "2023.05.20"]
[Round "-"]
[White "wot-not"]
[Black "CruisersCreek"]
[Result "1-0"]
[WhiteElo "1465"]
[BlackElo "1321"]
[TimeControl "300"]
[EndTime "9:33:02 PDT"]
[Termination "wot-not won on time"]

1. e4 {[%clk 0:04:58.2]} 1... c5 {[%clk 0:04:57]} 2. f4 {[%clk 0:04:56.8]} 2...
d5 {[%clk 0:04:41]} 3. e5 {[%clk 0:04:55.5]} 3... Nh6 {[%clk 0:04:31.1]} 4. Nf3
{[%clk 0:04:53.4]} 4... Bg4 {[%clk 0:04:24.7]} 5. d4 {[%clk 0:04:51.7]} 5...
cxd4 {[%clk 0:04:20.2]} 6. Bd3 {[%clk 0:04:49]} 6... Nc6 {[%clk 0:04:12.1]} 7.
O-O {[%clk 0:04:47.6]} 7... Qd7 {[%clk 0:04:00.9]} 8. Nbd2 {[%clk 0:04:46.3]}
8... Nf5 {[%clk 0:03:49.6]} 9. Nb3 {[%clk 0:04:38.9]} 9... a5 {[%clk 0:03:34.1]}
10. h3 {[%clk 0:04:19.2]} 10... Bxf3 {[%clk 0:03:30.3]} 11. Qxf3 {[%clk
0:04:16.1]} 11... a4 {[%clk 0:03:25.8]} 12. Nc5 {[%clk 0:04:13]} 12... Qc8
{[%clk 0:03:19.5]} 13. e6 {[%clk 0:04:01.4]} 13... fxe6 {[%clk 0:03:12.4]} 14.
Bxf5 {[%clk 0:03:55.8]} 14... exf5 {[%clk 0:03:10.4]} 15. Qxd5 {[%clk
0:03:51.5]} 15... e6 {[%clk 0:03:00.5]} 16. Qxe6+ {[%clk 0:03:44.6]} 16... Qxe6
{[%clk 0:02:54.2]} 17. Nxe6 {[%clk 0:03:43.7]} 17... Bd6 {[%clk 0:02:49]} 18.
Bd2 {[%clk 0:03:36.6]} 18... Kd7 {[%clk 0:02:41.9]} 19. Nxg7 {[%clk 0:03:33.6]}
19... Raf8 {[%clk 0:02:28.8]} 20. c3 {[%clk 0:03:16]} 20... Rhg8 {[%clk
0:02:23.9]} 21. Nh5 {[%clk 0:03:08.8]} 21... Rg6 {[%clk 0:02:14.9]} 22. Kh2
{[%clk 0:02:53.8]} 22... Rfg8 {[%clk 0:02:06.6]} 23. Rf2 {[%clk 0:02:41.6]}
23... Bc5 {[%clk 0:01:49.6]} 24. Re2 {[%clk 0:02:36.4]} 24... Re8 {[%clk
0:01:42.4]} 25. Rxe8 {[%clk 0:02:29.1]} 25... Kxe8 {[%clk 0:01:40.2]} 26. Re1+
{[%clk 0:02:28.7]} 26... Kf7 {[%clk 0:01:36.6]} 27. cxd4 {[%clk 0:02:20.9]}
27... Bxd4 {[%clk 0:01:30]} 28. Bc3 {[%clk 0:02:19.7]} 28... Rh6 {[%clk
0:01:21.6]} 29. Ng3 {[%clk 0:02:08.7]} 29... Bf2 {[%clk 0:01:19.2]} 30. Nxf5
{[%clk 0:02:02.8]} 30... Re6 {[%clk 0:00:53.7]} 31. Rxe6 {[%clk 0:02:00.2]}
31... Kxe6 {[%clk 0:00:52.3]} 32. Ng7+ {[%clk 0:01:47.2]} 32... Kf7 {[%clk
0:00:42]} 33. Nf5 {[%clk 0:01:33.3]} 33... Kg6 {[%clk 0:00:37.7]} 34. Nd6 {[%clk
0:01:30.1]} 34... b6 {[%clk 0:00:32.9]} 35. Ne4 {[%clk 0:01:25.2]} 35... Be3
{[%clk 0:00:28.3]} 36. g3 {[%clk 0:01:08.1]} 36... Nd4 {[%clk 0:00:19.3]} 37.
Bxd4 {[%clk 0:01:06.4]} 37... Bxd4 {[%clk 0:00:17.3]} 38. b3 {[%clk 0:01:05.9]}
38... axb3 {[%clk 0:00:13.4]} 39. axb3 {[%clk 0:01:05.2]} 39... Kf5 {[%clk
0:00:05.9]} 40. Nd6+ {[%clk 0:01:01]} 1-0

[Event "Live Chess"]
[Site "Chess.com"]
[Date "2023.05.20"]
[Round "-"]
[White "jagbama"]
[Black "Ocelot32"]
[Result "0-1"]
[WhiteElo "1114"]
[BlackElo "1390"]
[TimeControl "300"]
[EndTime "9:33:03 PDT"]
[Termination "Ocelot32 won by resignation"]

1. e4 {[%clk 0:04:57]} 1... e6 {[%clk 0:04:58.6]} 2. Nf3 {[%clk 0:04:56.4]} 2...
d5 {[%clk 0:04:56.2]} 3. e5 {[%clk 0:04:55.8]} 3... c5 {[%clk 0:04:51.3]} 4. c3
{[%clk 0:04:54.1]} 4... Nc6 {[%clk 0:04:49.9]} 5. d4 {[%clk 0:04:53.2]} 5... Qb6
{[%clk 0:04:48.7]} 6. Be3 {[%clk 0:04:44.3]} 6... cxd4 {[%clk 0:04:40.1]} 7.
Nxd4 {[%clk 0:04:35.3]} 7... Qxb2 {[%clk 0:04:33.1]} 8. Nd2 {[%clk 0:04:25.6]}
8... Qxc3 {[%clk 0:04:28.2]} 9. Nxc6 {[%clk 0:04:24.5]} 9... Qxc6 {[%clk
0:04:26.5]} 10. Rc1 {[%clk 0:04:23.2]} 10... Qd7 {[%clk 0:04:20]} 11. Bc5 {[%clk
0:04:09]} 11... Bxc5 {[%clk 0:04:17.4]} 12. Rxc5 {[%clk 0:04:08.2]} 12... Ne7
{[%clk 0:04:14.6]} 13. Bb5 {[%clk 0:04:06.5]} 13... Nc6 {[%clk 0:04:10.3]} 14.
O-O {[%clk 0:03:56.4]} 14... O-O {[%clk 0:04:03.6]} 15. Nb3 {[%clk 0:03:48.6]}
15... a6 {[%clk 0:04:01.8]} 16. Bd3 {[%clk 0:03:44]} 16... Nxe5 {[%clk
0:03:57.6]} 17. Bc2 {[%clk 0:03:27]} 17... Ng6 {[%clk 0:03:54.7]} 18. Rc3 {[%clk
0:03:18.7]} 18... Qe7 {[%clk 0:03:47.4]} 19. Nd4 {[%clk 0:03:00.4]} 19... Bd7
{[%clk 0:03:43.5]} 20. Rh3 {[%clk 0:02:52.5]} 20... e5 {[%clk 0:03:29.7]} 21.
Nf5 {[%clk 0:02:51.8]} 21... Bxf5 {[%clk 0:03:27.6]} 22. Bxf5 {[%clk 0:02:50.4]}
22... Qg5 {[%clk 0:03:16.9]} 23. Bxg6 {[%clk 0:02:39.2]} 23... Qxg6 {[%clk
0:03:11.8]} 24. Qxd5 {[%clk 0:02:38.1]} 24... Rfe8 {[%clk 0:03:03.4]} 25. Re1
{[%clk 0:02:30.6]} 25... Rad8 {[%clk 0:02:55.9]} 26. Qe4 {[%clk 0:02:23.7]}
26... Qxe4 {[%clk 0:02:51.1]} 0-1

[Event "Live Chess"]
[Site "Chess.com"]
[Date "2023.05.20"]
[Round "-"]
[White "TobyQuaite"]
[Black "zdanevych"]
[Result "0-1"]
[WhiteElo "1698"]
[BlackElo "1502"]
[TimeControl "300"]
[EndTime "9:33:04 PDT"]
[Termination "zdanevych won on time"]

1. e4 {[%clk 0:04:59.5]} 1... c5 {[%clk 0:04:58.7]} 2. Nf3 {[%clk 0:04:58.3]}
2... e6 {[%clk 0:04:58]} 3. c3 {[%clk 0:04:56.9]} 3... d5 {[%clk 0:04:57.4]} 4.
exd5 {[%clk 0:04:52.4]} 4... exd5 {[%clk 0:04:57.3]} 5. d4 {[%clk 0:04:51.7]}
5... Nc6 {[%clk 0:04:55.1]} 6. Bb5 {[%clk 0:04:48.8]} 6... a6 {[%clk 0:04:53.8]}
7. Bxc6+ {[%clk 0:04:44.4]} 7... bxc6 {[%clk 0:04:53.7]} 8. O-O {[%clk
0:04:43.5]} 8... Bg4 {[%clk 0:04:50.8]} 9. h3 {[%clk 0:04:40.3]} 9... Bh5 {[%clk
0:04:49.6]} 10. Bf4 {[%clk 0:04:38.9]} 10... cxd4 {[%clk 0:04:44.9]} 11. cxd4
{[%clk 0:04:37.7]} 11... Be7 {[%clk 0:04:44]} 12. Nc3 {[%clk 0:04:35.7]} 12...
Nf6 {[%clk 0:04:42.8]} 13. Re1 {[%clk 0:04:31.9]} 13... O-O {[%clk 0:04:42.1]}
14. Rc1 {[%clk 0:04:29.6]} 14... Re8 {[%clk 0:04:28.3]} 15. Re3 {[%clk
0:04:16.5]} 15... Qb6 {[%clk 0:04:19.3]} 16. Na4 {[%clk 0:03:58.7]} 16... Qb5
{[%clk 0:04:03.7]} 17. Qc2 {[%clk 0:03:41.1]} 17... Bxf3 {[%clk 0:03:49]} 18.
Rxf3 {[%clk 0:03:38.8]} 18... Rac8 {[%clk 0:03:37.3]} 19. Nc3 {[%clk 0:03:02]}
19... Qb6 {[%clk 0:03:30.5]} 20. Ne2 {[%clk 0:02:36.7]} 20... Ne4 {[%clk
0:03:28.8]} 21. Rb3 {[%clk 0:02:33.4]} 21... Qa7 {[%clk 0:03:03.7]} 22. f3
{[%clk 0:02:12.2]} 22... Nd6 {[%clk 0:03:02.4]} 23. Bxd6 {[%clk 0:02:05.4]}
23... Bxd6 {[%clk 0:03:01.7]} 24. Qd3 {[%clk 0:01:43.3]} 24... Re6 {[%clk
0:02:55.3]} 25. Nc3 {[%clk 0:01:25.1]} 25... Rce8 {[%clk 0:02:51.2]} 26. Kf1
{[%clk 0:01:19.8]} 26... Re3 {[%clk 0:02:47.6]} 27. Qd2 {[%clk 0:01:17.2]} 27...
Bg3 {[%clk 0:02:38.4]} 28. Na4 {[%clk 0:01:01.6]} 28... Qe7 {[%clk 0:02:33.1]}
29. Rxe3 {[%clk 0:00:54.6]} 29... Qxe3 {[%clk 0:02:30.6]} 30. Qxe3 {[%clk
0:00:52.4]} 30... Rxe3 {[%clk 0:02:30.5]} 31. Nc5 {[%clk 0:00:51.4]} 31... g6
{[%clk 0:02:09.4]} 32. Nxa6 {[%clk 0:00:48.7]} 32... Rd3 {[%clk 0:02:04.4]} 33.
Nb4 {[%clk 0:00:38.1]} 33... Rxd4 {[%clk 0:02:00.6]} 34. Nxc6 {[%clk 0:00:36.8]}
34... Rd2 {[%clk 0:01:51.5]} 35. a3 {[%clk 0:00:21.2]} 35... Kg7 {[%clk
0:01:42.2]} 36. Nb4 {[%clk 0:00:18]} 36... d4 {[%clk 0:01:35]} 37. Rc2 {[%clk
0:00:14.8]} 37... Rd1+ {[%clk 0:01:30.6]} 38. Ke2 {[%clk 0:00:14]} 38... Rg1
{[%clk 0:01:26.3]} 39. Kd3 {[%clk 0:00:12.6]} 39... Be5 {[%clk 0:01:19.9]} 40.
Nc6 {[%clk 0:00:11.2]} 40... Bf6 {[%clk 0:01:18.2]} 41. Nxd4 {[%clk 0:00:10.3]}
41... Bxd4 {[%clk 0:01:16.6]} 42. Kxd4 {[%clk 0:00:09.4]} 42... Rd1+ {[%clk
0:01:16]} 43. Kc3 {[%clk 0:00:09]} 43... Rd7 {[%clk 0:01:15]} 44. b4 {[%clk
0:00:08.1]} 44... Rc7+ {[%clk 0:01:14.3]} 45. Kb3 {[%clk 0:00:07.4]} 45... Rb7
{[%clk 0:01:13.6]} 46. a4 {[%clk 0:00:06.6]} 46... Re7 {[%clk 0:01:10.9]} 47. a5
{[%clk 0:00:05]} 47... Kf8 {[%clk 0:01:10.3]} 48. Ka4 {[%clk 0:00:04.1]} 48...
Ke8 {[%clk 0:01:09.9]} 49. b5 {[%clk 0:00:03.6]} 49... Rd7 {[%clk 0:01:09.1]}
50. a6 {[%clk 0:00:03.1]} 50... Kd8 {[%clk 0:01:08.7]} 51. Ka5 {[%clk
0:00:02.2]} 51... Rc7 {[%clk 0:01:05.3]} 0-1